[Event "WTCC-50 2018"]
[Site "Radebeul"]
[Date "2018.07.14"]
[Round "8"]
[White "Rudolf, Matthias"]
[Black "Penzold, Andreas"]
[Result "0-1"]
[ECO "A01"]
[WhiteElo "2102"]
[BlackElo "2389"]
[Annotator "NA"]
[PlyCount "108"]
[EventDate "2018.07.07"]
[EventType "team-tourn"]
[EventCountry "GER"]
[SourceTitle "playchess.com"]
[Source "ChessBase"]
[SourceQuality "1"]
[TimeControl "40/5400+30:1800+30"]

1. b3 {[%emt 0:00:00]} e5 {[%emt 0:00:36]} 2. Bb2 {[%emt 0:00:08]} d6 {[%emt 0:01:21]} 3. e3 {[%emt 0:01:24]} Nf6 {[%emt 0:01:14]} 4. Nf3 {[%emt 0:02:27]} g6 {[%emt 0:02:36]} 5. d4 {[%emt 0:02:53] A05: Réti Opening: 1 Nf3 Nf6} (5. c4 Bg7 6. Nc3 O-O 7. Be2 Re8 8. d4 e4 9. Nd2 c5 10. d5 h5 11. Qc2 Bf5 12. h3 Qe7 13. O-O-O {½-½ (56) Gabuzyan,H (2592)-Petrosian,D (2399) Yerevan 2016}) 5... e4 {[%emt 0:00:32]} 6. Nfd2 {[%emt 0:00:14]} Bg7 {[%emt 0:00:20]} 7. Be2 {[%emt 0:01:48]} h5 {[%emt 0:00:17]} 8. c4 {[%emt 0:03:59]} Bf5 {[%emt 0:05:49]} 9. Nc3 {[%emt 0:01:33]} O-O {[%emt 0:04:54]} 10. h3 $146 {[%emt 0:03:30]} ({Predecessor:} 10. O-O Re8 11. Re1 Nbd7 12. f4 exf3 13. Bxf3 c6 14. e4 Bg4 15. Bxg4 Nxg4 {0-1 (25) Mercier,J (1894)-Caroff,F (2107) Sautron 2010}) 10... h4 {[%emt 0:00:31]} 11. Bg4 {[%emt 0:04:38]} Qd7 {[%emt 0:02:23]} 12. Ndxe4 {[%emt 0:11:15]} Nxg4 {[%emt 0:00:40]} 13. hxg4 {[%emt 0:00:08]} Bxg4 {[%emt 0:00:06]} 14. f3 {[%emt 0:00:19]} Bf5 {[%emt 0:00:26]} 15. Rxh4 {[%emt 0:00:27]} c6 {[%emt 0:02:01]} 16. Qd2 {[%emt 0:06:47]} Bxe4 {[%emt 0:00:51]} 17. Nxe4 {[%emt 0:10:45]} d5 {[%emt 0:05:58]} 18. Nc5 {[%emt 0:08:45]} Qe7 {[%emt 0:00:29]} 19. Rh3 {[%emt 0:00:32]} Re8 {[%emt 0:06:49]} 20. Kf2 {[%emt 0:01:39]} Nd7 {[%emt 0:01:51]} 21. Nxd7 {[%emt 0:04:13]} Qxd7 {[%emt 0:00:09]} 22. cxd5 {[%emt 0:02:10]} cxd5 {[%emt 0:00:08]} 23. Rc1 {[%emt 0:01:09]} Re6 {[%emt 0:00:32]} 24. Qd3 {[%emt 0:06:00]} Rae8 {[%emt 0:02:36]} 25. f4 {[%emt 0:03:25]} Re4 {[%emt 0:03:18]} 26. Rc2 {[%emt 0:06:14]} Qf5 {[%emt 0:00:46]} 27. Rf3 {[%emt 0:07:05]} Qg4 {[%emt 0:10:49]} 28. Bc3 {[%emt 0:04:48]} Bf6 {[%emt 0:12:21]} 29. Kg1 {[%emt 0:00:25]} Bh4 {[%emt 0:03:05]} 30. Re2 {[%emt 0:01:40]} Bg3 {[%emt 0:00:37]} 31. Be1 {[%emt 0:01:03]} Bxf4 {[%emt 0:00:17]} 32. Bf2 {[%emt 0:00:52]} Qe6 {[%emt 0:06:00]} 33. Kf1 {[%emt 0:01:50]} Bg5 {[%emt 0:01:47]} 34. Rc2 {[%emt 0:01:22]} Bd8 {[%emt 0:01:39]} 35. Qb5 {[%emt 0:00:46]} Bb6 {[%emt 0:00:37]} 36. Rc1 {[%emt 0:00:41]} Kg7 {[%emt 0:04:20]} 37. Qd3 {[%emt 0:00:25]} Rh8 {[%emt 0:00:44]} 38. Kg1 {[%emt 0:00:14]} g5 {[%emt 0:02:28]} 39. Bg3 {[%emt 0:00:47]} f6 {[%emt 0:03:59]} 40. Rcf1 {[%emt 0:00:26]} Bd8 {[%emt 0:00:27]} 41. Kf2 {[%emt 0:10:16]} Re8 {[%emt 0:03:13]} 42. Qb5 $2 {[%emt 0:08:12]} (42. Rh1 {is more resistant.}) 42... Rxe3 {[%emt 0:10:32]} 43. Qxb7+ {[%emt 0:03:51] [#]} Kg6 $1 {[%emt 0:10:56]} 44. Kg1 {[%emt 0:04:03]} Rxf3 {[%emt 0:00:20]} 45. gxf3 {[%emt 0:02:33]} Bb6 {[%emt 0:00:20]} 46. Re1 {[%emt 0:02:02] [#]} Qh3 $1 {[%emt 0:02:32]} 47. Rxe8 {[%emt 0:01:37]} Bxd4+ {[%emt 0:00:27]} 48. Bf2 {[%emt 0:00:10]} Qg3+ $1 {[%emt 0:00:08]} 49. Kh1 {[%emt 0:00:04]} Qxf3+ {[%emt 0:00:18]} 50. Kh2 {[%emt 0:00:14]} Qxf2+ {[%emt 0:00:10]} 51. Kh3 {[%emt 0:00:03]} Qf1+ {[%emt 0:00:19]} 52. Kg3 {[%emt 0:02:38]} Qg1+ {[%emt 0:00:17]} 53. Kf3 {[%emt 0:00:35]} Qf2+ {[%emt 0:00:08]} 54. Kg4 Qg2# 0-1

[Event "WTCC-50 2018"]
[Site "Radebeul"]
[Date "2018.07.14"]
[Round "8"]
[White "Rudolf, Matthias, Dr."]
[Black "Penzold, Andreas"]
[Result "0-1"]
[ECO "A01"]
[WhiteElo "2102"]
[BlackElo "2389"]
[Annotator "NA"]
[PlyCount "108"]
[EventDate "2018.07.07"]
[EventType "team-tourn"]
[EventCountry "GER"]
[SourceTitle "playchess.com"]
[Source "ChessBase"]
[SourceQuality "1"]
[TimeControl "40/5400+30:1800+30"]

1. b3 {[%emt 0:00:00]} e5 {[%emt 0:00:36]} 2. Bb2 {[%emt 0:00:08]} d6 {[%emt 0:01:21]} 3. e3 {[%emt 0:01:24]} Nf6 {[%emt 0:01:14]} 4. Nf3 {[%emt 0:02:27]} g6 {[%emt 0:02:36]} 5. d4 {[%emt 0:02:53]} e4 {[%emt 0:00:32]} 6. Nfd2 {[%emt 0:00:14]} Bg7 {[%emt 0:00:20]} 7. Be2 {[%emt 0:01:48]} h5 {[%emt 0:00:17]} 8. c4 {[%emt 0:03:59]} Bf5 {[%emt 0:05:49]} 9. Nc3 {[%emt 0:01:33]} O-O {[%emt 0:04:54]} 10. h3 {[%emt 0:03:30]} h4 {[%emt 0:00:31]} 11. Bg4 {[%emt 0:04:38]} Qd7 {[%emt 0:02:23]} 12. Ndxe4 {[%emt 0:11:15]} Nxg4 {[%emt 0:00:40]} 13. hxg4 {[%emt 0:00:08]} Bxg4 {[%emt 0:00:06]} 14. f3 {[%emt 0:00:19]} Bf5 {[%emt 0:00:26]} 15. Rxh4 {[%emt 0:00:27]} c6 {[%emt 0:02:01]} 16. Qd2 {[%emt 0:06:47]} Bxe4 {[%emt 0:00:51]} 17. Nxe4 {[%emt 0:10:45]} d5 {[%emt 0:05:58]} 18. Nc5 {[%emt 0:08:45]} Qe7 {[%emt 0:00:29]} 19. Rh3 {[%emt 0:00:32]} Re8 {[%emt 0:06:49]} 20. Kf2 {[%emt 0:01:39]} Nd7 {[%emt 0:01:51]} 21. Nxd7 {[%emt 0:04:13]} Qxd7 {[%emt 0:00:09]} 22. cxd5 {[%emt 0:02:10]} cxd5 {[%emt 0:00:08]} 23. Rc1 {[%emt 0:01:09]} Re6 {[%emt 0:00:32]} 24. Qd3 {[%emt 0:06:00]} Rae8 {[%emt 0:02:36]} 25. f4 {[%emt 0:03:25]} Re4 {[%emt 0:03:18]} 26. Rc2 {[%emt 0:06:14]} Qf5 {[%emt 0:00:46]} 27. Rf3 {[%emt 0:07:05]} Qg4 {[%emt 0:10:49]} 28. Bc3 {[%emt 0:04:48]} Bf6 {[%emt 0:12:21]} 29. Kg1 {[%emt 0:00:25]} Bh4 {[%emt 0:03:05]} 30. Re2 {[%emt 0:01:40]} Bg3 {[%emt 0:00:37]} 31. Be1 {[%emt 0:01:03]} Bxf4 {[%emt 0:00:17]} 32. Bf2 {[%emt 0:00:52]} Qe6 {[%emt 0:06:00]} 33. Kf1 {[%emt 0:01:50]} Bg5 {[%emt 0:01:47]} 34. Rc2 {[%emt 0:01:22]} Bd8 {[%emt 0:01:39]} 35. Qb5 {[%emt 0:00:46]} Bb6 {[%emt 0:00:37]} 36. Rc1 {[%emt 0:00:41]} Kg7 {[%emt 0:04:20]} 37. Qd3 {[%emt 0:00:25]} Rh8 {[%emt 0:00:44]} 38. Kg1 {[%emt 0:00:14]} g5 {[%emt 0:02:28]} 39. Bg3 {[%emt 0:00:47]} f6 {[%emt 0:03:59]} 40. Rcf1 {[%emt 0:00:26]} Bd8 {[%emt 0:00:27]} 41. Kf2 {[%emt 0:10:16]} Re8 {[%emt 0:03:13]} 42. Qb5 {[%emt 0:08:12]} Rxe3 {[%emt 0:10:32]} 43. Qxb7+ {[%emt 0:03:51]} Kg6 {[%emt 0:10:56]} 44. Kg1 {[%emt 0:04:03]} Rxf3 {[%emt 0:00:20]} 45. gxf3 {[%emt 0:02:33]} Bb6 {[%emt 0:00:20]} 46. Re1 {[%emt 0:02:02]} Qh3 {[%emt 0:02:32]} 47. Rxe8 {[%emt 0:01:37]} Bxd4+ {[%emt 0:00:27]} 48. Bf2 {[%emt 0:00:10]} Qg3+ {[%emt 0:00:08]} 49. Kh1 {[%emt 0:00:04]} Qxf3+ {[%emt 0:00:18]} 50. Kh2 {[%emt 0:00:14]} Qxf2+ {[%emt 0:00:10]} 51. Kh3 {[%emt 0:00:03]} Qf1+ {[%emt 0:00:19]} 52. Kg3 {[%emt 0:02:38]} Qg1+ {[%emt 0:00:17]} 53. Kf3 {[%emt 0:00:35]} Qf2+ {[%emt 0:00:08]} 54. Kg4 Qg2# 0-1

[Event "WTCC-50 2018"]
[Site "Radebeul"]
[Date "2018.07.14"]
[Round "8"]
[White "Heyme, Sibylle"]
[Black "Boehm, Martin"]
[Result "1/2-1/2"]
[ECO "A37"]
[WhiteElo "2037"]
[BlackElo "2172"]
[Annotator "NA"]
[PlyCount "36"]
[EventDate "2018.07.07"]
[EventType "team-tourn"]
[EventCountry "GER"]
[SourceTitle "playchess.com"]
[Source "ChessBase"]
[SourceQuality "1"]
[TimeControl "40/5400+30:1800+30"]

1. Nf3 {[%emt 0:00:00]} c5 {[%emt 0:00:06]} 2. g3 {[%emt 0:00:28]} Nc6 {[%emt 0:00:17]} 3. Bg2 {[%emt 0:00:26]} g6 {[%emt 0:00:16]} 4. c4 {[%emt 0:00:29]} Bg7 {[%emt 0:00:13]} 5. Nc3 {[%emt 0:00:30]} e5 {[%emt 0:02:19]} 6. d3 {[%emt 0:01:43]} Nge7 {[%emt 0:01:08]} 7. O-O {[%emt 0:00:48]} O-O {[%emt 0:00:15]} 8. a3 {[%emt 0:01:46]} d6 {[%emt 0:04:48]} 9. Bd2 {[%emt 0:06:06]} h6 {[%emt 0:02:24]} 10. Rb1 {[%emt 0:01:35]} Be6 {[%emt 0:09:31]} 11. b4 {[%emt 0:06:20]} b6 {[%emt 0:12:11]} 12. Ne1 {[%emt 0:25:03]} Rb8 {[%emt 0:17:51]} 13. Nc2 {[%emt 0:07:14]} Qd7 {[%emt 0:08:24]} 14. Ne3 {[%emt 0:01:10]} Bh3 {[%emt 0:00:46]} 15. Ned5 {[%emt 0:01:20]} Bxg2 {[%emt 0:00:39]} 16. Kxg2 {[%emt 0:00:08]} Nxd5 {[%emt 0:01:56]} 17. Nxd5 {[%emt 0:00:13]} Qb7 {[%emt 0:00:30]} 18. Kg1 {[%emt 0:00:30]} Ne7 {[%emt 0:02:25]} 1/2-1/2

[Event "WTCC-50 2018"]
[Site "Radebeul"]
[Date "2018.07.14"]
[Round "8"]
[White "Marwitz, Tino"]
[Black "Luger, Jens"]
[Result "1/2-1/2"]
[ECO "D02"]
[WhiteElo "2031"]
[BlackElo "1920"]
[Annotator "NA"]
[PlyCount "64"]
[EventDate "2018.07.07"]
[EventType "team-tourn"]
[EventCountry "GER"]
[SourceTitle "playchess.com"]
[Source "ChessBase"]
[SourceQuality "1"]
[TimeControl "40/5400+30:1800+30"]

1. d4 {[%emt 0:00:00]} d5 {[%emt 0:00:00]} 2. Nf3 {[%emt 0:00:00]} Nf6 {[%emt 0:00:42]} 3. c4 {[%emt 0:05:41]} e6 {[%emt 0:00:33]} 4. g3 {[%emt 0:00:12]} c6 {[%emt 0:00:13]} 5. Bg2 {[%emt 0:00:18]} Be7 {[%emt 0:00:21]} 6. O-O {[%emt 0:00:09]} O-O {[%emt 0:00:03]} 7. b3 {[%emt 0:01:03]} Nbd7 {[%emt 0:01:37]} 8. Bb2 {[%emt 0:00:53]} b6 {[%emt 0:05:21]} 9. Nc3 {[%emt 0:01:01]} Ba6 {[%emt 0:00:58]} 10. Nd2 {[%emt 0:03:25]} Rc8 {[%emt 0:02:15]} 11. Rc1 {[%emt 0:02:40]} Bb7 {[%emt 0:05:01]} 12. e4 dxe4 {[%emt 0:05:48]} 13. Ndxe4 {[%emt 0:03:56]} Nxe4 {[%emt 0:01:06]} 14. Nxe4 {[%emt 0:00:11]} Nf6 {[%emt 0:02:22]} 15. Re1 {[%emt 0:01:44]} Qd7 {[%emt 0:05:31]} 16. Qe2 {[%emt 0:10:43]} Rfd8 {[%emt 0:04:48]} 17. Ng5 {[%emt 0:02:23]} Bb4 {[%emt 0:16:21]} 18. Red1 {[%emt 0:01:07]} Qe7 {[%emt 0:01:47]} 19. Nf3 {[%emt 0:04:57]} Nd7 {[%emt 0:06:20]} 20. Rd3 {[%emt 0:04:10]} h6 {[%emt 0:05:48]} 21. Re3 {[%emt 0:00:19]} Qf8 {[%emt 0:01:48]} 22. Bh3 {[%emt 0:02:14]} Re8 {[%emt 0:05:03]} 23. Rd1 {[%emt 0:01:37]} Rcd8 {[%emt 0:00:56]} 24. Red3 {[%emt 0:04:46]} Bc8 {[%emt 0:02:36]} 25. Bg2 {[%emt 0:03:53]} Bb7 {[%emt 0:02:59]} 26. Qc2 {[%emt 0:01:03]} Rc8 {[%emt 0:02:49]} 27. Qc1 {[%emt 0:00:53]} Be7 {[%emt 0:01:25]} 28. Qd2 {[%emt 0:03:30]} Bb4 {[%emt 0:00:26]} 29. Qc1 {[%emt 0:00:52]} Be7 {[%emt 0:00:04]} 30. Bc3 {[%emt 0:01:16]} Ba3 {[%emt 0:03:19]} 31. Qd2 {[%emt 0:00:10]} Be7 {[%emt 0:01:33]} 32. b4 {[%emt 0:00:31]} Ba6 {[%emt 0:01:16]} 1/2-1/2

[Event "WTCC-50 2018"]
[Site "Radebeul"]
[Date "2018.07.14"]
[Round "8"]
[White "Habel, Christof"]
[Black "Wolf, Sylvia"]
[Result "1/2-1/2"]
[ECO "A43"]
[WhiteElo "2026"]
[BlackElo "2023"]
[Annotator "NA"]
[PlyCount "34"]
[EventDate "2018.07.07"]
[EventType "team-tourn"]
[EventCountry "GER"]
[SourceTitle "playchess.com"]
[Source "ChessBase"]
[SourceQuality "1"]
[TimeControl "40/5400+30:1800+30"]

1. d4 {[%emt 0:00:00]} c5 {[%emt 0:00:00]} 2. d5 {[%emt 0:00:39]} Nf6 {[%emt 0:00:00]} 3. Nc3 {[%emt 0:00:14]} d6 {[%emt 0:01:58]} 4. e4 {[%emt 0:01:02]} g6 {[%emt 0:03:03]} 5. Nf3 {[%emt 0:04:34]} Bg7 {[%emt 0:00:43]} 6. a4 {[%emt 0:01:28]} O-O {[%emt 0:01:27]} 7. Be2 {[%emt 0:00:48]} e5 {[%emt 0:07:57]} 8. dxe6 {[%emt 0:02:37]} Bxe6 {[%emt 0:00:08]} 9. Ng5 {[%emt 0:07:04]} d5 {[%emt 0:07:09]} 10. exd5 {[%emt 0:07:00]} Nxd5 {[%emt 0:04:11]} 11. Nxe6 {[%emt 0:02:43]} fxe6 {[%emt 0:02:46]} 12. Ne4 {[%emt 0:05:48]} Nc6 {[%emt 0:08:32]} 13. O-O {[%emt 0:07:19]} b6 {[%emt 0:05:07]} 14. Bg4 {[%emt 0:11:40]} Nd4 {[%emt 0:05:44]} 15. Ng5 {[%emt 0:01:17]} Nc7 {[%emt 0:06:59]} 16. Ra3 {[%emt 0:07:02]} h6 {[%emt 0:03:12]} 17. Ne4 {[%emt 0:03:22]} Qd5 {[%emt 0:04:06]} 1/2-1/2

[Event "WTCC-50 2018"]
[Site "Radebeul"]
[Date "2018.07.14"]
[Round "8"]
[White "Hutschenreiter, Joerg"]
[Black "Wuttke, Hans"]
[Result "1/2-1/2"]
[ECO "A40"]
[WhiteElo "2023"]
[BlackElo "2160"]
[Annotator "NA"]
[PlyCount "32"]
[EventDate "2018.07.07"]
[EventType "team-tourn"]
[EventCountry "GER"]
[SourceTitle "playchess.com"]
[Source "ChessBase"]
[SourceQuality "1"]
[TimeControl "40/5400+30:1800+30"]

1. d4 {[%emt 0:00:00]} e6 {[%emt 0:00:00]} 2. g3 {[%emt 0:00:54]} c5 {[%emt 0:00:00]} 3. Nf3 {[%emt 0:01:16]} cxd4 {[%emt 0:00:48]} 4. Nxd4 {[%emt 0:00:01]} Nc6 {[%emt 0:00:36]} 5. Bg2 {[%emt 0:01:27]} Qb6 {[%emt 0:02:28]} 6. Nf3 {[%emt 0:14:02]} d5 {[%emt 0:02:13]} 7. O-O {[%emt 0:00:06]} Nf6 {[%emt 0:02:05]} 8. b3 {[%emt 0:00:26]} Be7 {[%emt 0:01:00]} 9. Bb2 {[%emt 0:01:05]} O-O {[%emt 0:00:18]} 10. Nbd2 {[%emt 0:00:08]} Rd8 {[%emt 0:01:28]} 11. c3 {[%emt 0:07:53]} h6 {[%emt 0:11:14]} 12. Qb1 {[%emt 0:01:30]} Bd7 {[%emt 0:05:12]} 13. e4 {[%emt 0:03:19]} dxe4 {[%emt 0:04:01]} 14. Nxe4 {[%emt 0:00:16]} Nxe4 {[%emt 0:00:31]} 15. Qxe4 {[%emt 0:00:02]} Bf6 {[%emt 0:00:13]} 16. Qe2 {[%emt 0:00:37]} Be8 {[%emt 0:12:10]} 1/2-1/2

[Event "WTCC-50 2018"]
[Site "Radebeul"]
[Date "2018.07.14"]
[Round "8"]
[White "Eriksson, Urban"]
[Black "Goh, Cheng Hong"]
[Result "1/2-1/2"]
[ECO "A04"]
[WhiteElo "1875"]
[BlackElo "2323"]
[Annotator "NA"]
[PlyCount "109"]
[EventDate "2018.07.07"]
[EventType "team-tourn"]
[EventCountry "GER"]
[SourceTitle "playchess.com"]
[Source "ChessBase"]
[SourceQuality "1"]
[TimeControl "40/5400+30:1800+30"]

1. Nf3 {[%emt 0:00:00]} g6 {[%emt 0:00:00]} 2. e4 {[%emt 0:00:00]} Bg7 {[%emt 0:00:00]} 3. d4 {[%emt 0:00:11]} c5 {[%emt 0:00:14]} 4. c3 {[%emt 0:00:31]} d5 {[%emt 0:02:36]} 5. exd5 {[%emt 0:06:48]} Qxd5 {[%emt 0:01:50]} 6. Be2 {[%emt 0:08:40]} cxd4 {[%emt 0:09:26]} 7. cxd4 {[%emt 0:00:47]} Nc6 {[%emt 0:01:03] B06: Modern Defence} (7... Nf6 8. Nc3 Qd6 9. O-O O-O 10. Qb3 Na6 11. Rd1 b6 12. Ne5 Nc7 13. Nc4 Qd8 14. Bf4 Ncd5 15. Nxd5 Nxd5 16. Be5 {0-1 (66) Yeoh,L (2478)-Anand,V (2783) Tbilisi 2017}) 8. Nc3 {[%emt 0:01:23]} Qa5 {[%emt 0:01:23]} 9. O-O {[%emt 0:00:50]} Bg4 {[%emt 0:02:25]} 10. Qb3 {[%emt 0:10:43]} Bxf3 {[%emt 0:12:04]} 11. Bxf3 {[%emt 0:02:13]} Nxd4 {[%emt 0:00:09]} 12. Qxb7 {[%emt 0:01:11]} Nxf3+ {[%emt 0:02:03]} 13. Qxf3 {[%emt 0:02:03]} Rc8 {[%emt 0:18:46]} 14. Qb7 {[%emt 0:03:58]} Qc7 {[%emt 0:03:47]} 15. Qxc7 $146 {[%emt 0:08:21]} ({Predecessor:} 15. Qb5+) 15... Rxc7 {[%emt 0:00:03]} 16. Be3 {[%emt 0:03:47]} Bxc3 {[%emt 0:05:39]} 17. bxc3 {[%emt 0:00:38]} Nf6 {[%emt 0:00:07]} 18. Bd4 {[%emt 0:03:54]} O-O {[%emt 0:01:07]} 19. Rac1 {[%emt 0:04:38]} Rfc8 {[%emt 0:04:18]} 20. Rc2 {[%emt 0:00:27]} Nd5 {[%emt 0:04:52]} 21. Rfc1 {[%emt 0:05:17]} a6 {[%emt 0:01:13]} 22. g3 {[%emt 0:05:36]} g5 {[%emt 0:01:20]} 23. f4 {[%emt 0:01:01]} gxf4 {[%emt 0:01:42]} 24. c4 {[%emt 0:11:42]} Nb4 {[%emt 0:05:11]} 25. Rd2 {[%emt 0:03:09]} fxg3 {[%emt 0:06:11]} 26. Be5 {[%emt 0:04:13]} gxh2+ {[%emt 0:01:43]} 27. Kxh2 {[%emt 0:00:21]} Rc6 {[%emt 0:03:34]} 28. a3 {[%emt 0:00:23]} Rh6+ {[%emt 0:00:29]} 29. Kg1 {[%emt 0:00:49]} Nc6 {[%emt 0:00:08]} 30. Bf4 {[%emt 0:03:06]} Rh4 {[%emt 0:01:47]} 31. Rg2+ {[%emt 0:00:46]} Kf8 {[%emt 0:00:36]} 32. Bg5 {[%emt 0:01:42]} Rh5 {[%emt 0:00:55]} 33. Rb1 {[%emt 0:01:37]} f6 {[%emt 0:00:36]} 34. Be3 Ne5 {[%emt 0:04:51]} 35. c5 {[%emt 0:02:27]} Nc4 {[%emt 0:00:37]} 36. Bf2 {[%emt 0:00:47]} Nxa3 {[%emt 0:00:30]} 37. Rb6 {[%emt 0:00:49]} a5 {[%emt 0:00:44]} 38. c6 {[%emt 0:00:41]} Rb5 {[%emt 0:01:26]} 39. Ra6 {[%emt 0:01:02]} Rb1+ {[%emt 0:00:09]} 40. Kh2 {[%emt 0:00:10]} Rc1 {[%emt 0:00:01]} 41. Rxa5 {[%emt 0:30:51]} Nb1 {[%emt 0:18:34]} ({Schlechter ist} 41... R1xc6 42. Rxa3 Rc3 43. Ra7 $14) 42. Ra1 {[%emt 0:00:00]} R8xc6 {[%emt 0:00:12]} 43. Be3 {[%emt 0:00:00]} Rd1 {[%emt 0:00:18]} 44. Bh6+ {[%emt 0:00:00] [#]} Kf7 $1 {[%emt 0:05:31]} 45. Ra7 {[%emt 0:00:00]} Nc3 {[%emt 0:01:14]} 46. Rg7+ {[%emt 0:00:00]} Ke6 {[%emt 0:00:14]} 47. Rgxe7+ {[%emt 0:00:00]} Kf5 {[%emt 0:00:25]} 48. Rxh7 {[%emt 0:00:00]} Ne4 {[%emt 0:02:37]} 49. Rhg7 {[%emt 0:00:00]} Rc2+ {[%emt 0:02:54]} 50. Rg2 {[%emt 0:00:00]} Rxg2+ {[%emt 0:00:35]} 51. Kxg2 {[%emt 0:00:00]} Rd3 {[%emt 0:00:30]} 52. Ra4 {[%emt 0:00:00]} Rg3+ {[%emt 0:01:13]} 53. Kh2 {[%emt 0:00:00]} Rb3 {[%emt 0:00:51]} 54. Bc1 {[%emt 0:00:00]} Rc3 $15 {[%emt 0:00:35]} 55. Bh6 {[%emt 0:00:33]} 1/2-1/2

[Event "WTCC-50 2018"]
[Site "Radebeul"]
[Date "2018.07.15"]
[Round "9"]
[White "Shabalov, Alexander"]
[Black "Cummings, David H"]
[Result "1-0"]
[ECO "B48"]
[WhiteElo "2567"]
[BlackElo "2336"]
[Annotator "ChessBase"]
[PlyCount "75"]
[EventDate "2018.07.07"]
[EventType "team-tourn"]
[EventCountry "GER"]
[SourceTitle "playchess.com"]
[Source "ChessBase"]
[SourceQuality "1"]
[TimeControl "40/5400+30:1800+30"]

1. e4 {[%emt 0:00:00]} c5 {[%emt 0:00:00]} 2. Nf3 {[%emt 0:00:00]} e6 {[%emt 0:00:00]} 3. d4 {[%emt 0:00:00]} cxd4 {[%emt 0:00:00]} 4. Nxd4 {[%emt 0:00:00]} Nc6 {[%emt 0:00:09]} 5. Nc3 {[%emt 0:00:00]} Qc7 {[%emt 0:00:11]} 6. Be3 {[%emt 0:00:02]} a6 {[%emt 0:00:09]} 7. f4 {[%emt 0:00:12]} b5 {[%emt 0:00:55]} 8. Bd3 {[%emt 0:00:47]} Bb7 {[%emt 0:00:40]} 9. Nb3 {[%emt 0:00:08]} d6 {[%emt 0:02:12]} 10. Qf3 {[%emt 0:00:05]} Nf6 {[%emt 0:00:36]} 11. O-O {[%emt 0:00:07]} Be7 {[%emt 0:01:10]} 12. Qh3 {[%emt 0:00:07]} Nb4 {[%emt 0:05:22]} 13. Rac1 {[%emt 0:03:52]} Nxd3 {[%emt 0:11:00]} 14. cxd3 {[%emt 0:00:14]} Qd7 {[%emt 0:00:06]} 15. Na5 {[%emt 0:06:42]} O-O {[%emt 0:09:29]} 16. f5 {[%emt 0:02:25]} exf5 {[%emt 0:07:09]} 17. Rxf5 {[%emt 0:03:29]} b4 {[%emt 0:03:54]} 18. Ne2 {[%emt 0:03:20]} Rac8 {[%emt 0:20:07]} 19. Re1 {[%emt 0:19:52]} Ba8 {[%emt 0:02:35]} 20. Bd4 {[%emt 0:02:08]} d5 {[%emt 0:05:44]} 21. e5 {[%emt 0:12:12]} Ne8 {[%emt 0:00:28]} 22. Nf4 {[%emt 0:02:36]} Nc7 {[%emt 0:07:36]} 23. Nb3 {[%emt 0:14:25]} Ne6 {[%emt 0:07:16]} 24. Rh5 {[%emt 0:03:37]} h6 {[%emt 0:00:22]} 25. Be3 {[%emt 0:01:31]} Rc7 {[%emt 0:03:07]} 26. Qg3 {[%emt 0:03:52]} Kh7 {[%emt 0:08:52]} 27. Nd4 {[%emt 0:05:59]} Nxf4 {[%emt 0:00:12]} 28. Qxf4 {[%emt 0:01:38]} Bc5 {[%emt 0:01:54]} 29. Rxh6+ {[%emt 0:07:59]} gxh6 {[%emt 0:00:46]} 30. Qxh6+ {[%emt 0:00:07]} Kg8 {[%emt 0:00:02]} 31. Qg5+ {[%emt 0:00:27]} Kh7 {[%emt 0:00:26]} 32. Nf5 {[%emt 0:00:42]} f6 {[%emt 0:00:21]} 33. Qh6+ {[%emt 0:00:41]} Kg8 {[%emt 0:00:05]} 34. Bxc5 {[%emt 0:00:27]} Qxf5 {[%emt 0:01:24]} 35. Qxf8+ {[%emt 0:00:22]} Kh7 {[%emt 0:00:04]} 36. exf6 {[%emt 0:01:07]} d4 {[%emt 0:00:59]} 37. Re7+ {[%emt 0:00:22]} Rxe7 {[%emt 0:00:19]} 38. Qxe7+ {[%emt 0:00:06]} 1-0

[Event "WTCC-50 2018"]
[Site "Radebeul"]
[Date "2018.07.15"]
[Round "9"]
[White "Ehlvest, Jaan"]
[Black "Findlay, Ian T"]
[Result "1/2-1/2"]
[ECO "A14"]
[WhiteElo "2536"]
[BlackElo "2244"]
[Annotator "ChessBase"]
[PlyCount "102"]
[EventDate "2018.07.07"]
[EventType "team-tourn"]
[EventCountry "GER"]
[SourceTitle "playchess.com"]
[Source "ChessBase"]
[SourceQuality "1"]
[TimeControl "40/5400+30:1800+30"]

1. c4 {[%emt 0:00:00]} e6 {[%emt 0:00:00]} 2. Nf3 {[%emt 0:00:00]} Nf6 {[%emt 0:00:00]} 3. g3 {[%emt 0:00:00]} Be7 {[%emt 0:00:12]} 4. Bg2 {[%emt 0:00:00]} d5 {[%emt 0:00:10]} 5. O-O {[%emt 0:00:00]} O-O {[%emt 0:00:05]} 6. d4 {[%emt 0:00:53]} dxc4 {[%emt 0:00:10]} 7. Qc2 {[%emt 0:10:30]} a6 {[%emt 0:00:12]} 8. a4 {[%emt 0:00:46]} Bd7 {[%emt 0:00:18]} 9. Qxc4 {[%emt 0:00:50]} Bc6 {[%emt 0:00:08]} 10. Bg5 {[%emt 0:01:26]} Nbd7 {[%emt 0:01:26]} 11. Nc3 {[%emt 0:01:55]} h6 {[%emt 0:00:38]} 12. Bf4 {[%emt 0:06:39]} Nb6 {[%emt 0:11:50]} 13. Qb3 {[%emt 0:00:56]} Nbd5 {[%emt 0:07:15]} 14. Bd2 {[%emt 0:11:16]} Nxc3 {[%emt 0:00:51]} 15. bxc3 {[%emt 0:01:07]} b5 {[%emt 0:07:14]} 16. Ne5 {[%emt 0:08:03]} bxa4 {[%emt 0:11:24]} 17. Qa2 {[%emt 0:03:40]} Bxg2 {[%emt 0:00:46]} 18. Kxg2 {[%emt 0:00:03]} c5 {[%emt 0:13:20]} 19. Qxa4 {[%emt 0:01:08]} Ne4 {[%emt 0:01:07]} 20. Be1 {[%emt 0:02:16]} Qc7 {[%emt 0:08:12]} 21. f3 {[%emt 0:21:06]} Nf6 {[%emt 0:01:18]} 22. e4 {[%emt 0:01:17]} Rfb8 {[%emt 0:11:02]} 23. Rf2 {[%emt 0:02:04]} Rb7 {[%emt 0:02:31]} 24. Rfa2 {[%emt 0:01:39]} Nd7 {[%emt 0:10:08]} 25. Nxd7 {[%emt 0:04:36]} Qxd7 {[%emt 0:00:03]} 26. Qxd7 {[%emt 0:00:15]} Rxd7 {[%emt 0:00:02]} 27. Bf2 {[%emt 0:00:10]} cxd4 {[%emt 0:02:03]} 28. Bxd4 {[%emt 0:00:08]} Rd6 {[%emt 0:01:43]} 29. Bc5 {[%emt 0:00:44]} Rd7 {[%emt 0:00:02]} 30. Bxe7 {[%emt 0:00:09]} Rxe7 {[%emt 0:00:01]} 31. Rxa6 {[%emt 0:00:07]} Rxa6 {[%emt 0:00:19]} 32. Rxa6 {[%emt 0:00:04]} Rc7 {[%emt 0:01:30]} 33. Ra3 {[%emt 0:00:18]} f5 {[%emt 0:00:46]} 34. Kf2 {[%emt 0:01:18]} fxe4 {[%emt 0:00:35]} 35. fxe4 {[%emt 0:00:10]} Kf7 {[%emt 0:00:10]} 36. Ke3 {[%emt 0:02:57]} Kf6 {[%emt 0:00:08]} 37. h4 {[%emt 0:00:38]} h5 {[%emt 0:03:00]} 38. Kd4 {[%emt 0:07:43]} Rd7+ {[%emt 0:00:23]} 39. Kc4 {[%emt 0:01:13]} Ke5 {[%emt 0:02:39]} 40. Ra5+ {[%emt 0:01:00]} Kxe4 {[%emt 0:00:04]} 41. Rxh5 {[%emt 0:30:07]} Rc7+ {[%emt 0:35:28]} 42. Rc5 {[%emt 0:01:18]} Rb7 {[%emt 0:00:00]} 43. Rc6 {[%emt 0:00:00]} e5 {[%emt 0:00:00]} 44. Re6 {[%emt 0:00:00]} Rc7+ {[%emt 0:00:00]} 45. Kb4 {[%emt 0:00:00]} Kd5 {[%emt 0:00:00]} 46. Rb6 {[%emt 0:00:00]} Rc4+ {[%emt 0:00:00]} 47. Kb3 {[%emt 0:00:00]} Rg4 {[%emt 0:00:00]} 48. Rb5+ {[%emt 0:00:00]} Kd6 {[%emt 0:00:00]} 49. h5 {[%emt 0:00:00]} Rxg3 {[%emt 0:00:00]} 50. h6 {[%emt 0:00:00]} gxh6 {[%emt 0:00:00]} 51. Rb6+ {[%emt 0:00:00]} Kc5 1/2-1/2